fUST/lending_fUST_20250501
["ID","MTS","AMOUNT","RATE_DAILY","PERIOD"]
[359485061,1746054640754,-217.69,0.00038356,12]
[359485063,1746054640763,-400.0,0.00038356,12]
[359485064,1746054640773,-400.0,0.00038356,12]
[359485065,1746054640783,-500.0,0.00038356,12]
[359485066,1746054640794,-324.63345828,0.00038356,12]
[359485067,1746054640803,-400.0,0.00038356,12]
[359485068,1746054640813,-400.0,0.00038356,12]
[359485070,1746054640824,-400.0,0.00038356,12]
[359485072,1746054640834,-400.0,0.00038356,12]
[359485073,1746054640843,-400.0,0.00038356,12]
[359485074,1746054640853,-400.0,0.00038356,12]
[359485075,1746054640863,-400.0,0.00038356,12]
[359485076,1746054640872,-289.18,0.00038356,12]
[359485077,1746054640882,-400.0,0.00038356,12]
[359485078,1746054640892,-400.0,0.00038356,12]
[359485079,1746054640902,-484.69,0.00038356,12]
[359485080,1746054640912,-400.0,0.00038356,12]
[359485081,1746054640922,-500.0,0.00038356,12]
[359485082,1746054640931,-400.0,0.00038356,12]
[359485083,1746054640941,-400.0,0.00038356,12]
[359485084,1746054640951,-200.82,0.00038356,12]
[359485085,1746054640961,-411.15,0.00038356,12]
[359485086,1746054640971,-500.0,0.00038356,12]
[359485087,1746054640983,-400.0,0.00038356,12]
[359485088,1746054640993,-400.0,0.00038356,12]
[359485089,1746054641003,-400.0,0.00038356,12]
[359485090,1746054641013,-271.23,0.00038356,12]
[359485091,1746054641022,-400.0,0.00038356,12]
[359485092,1746054641032,-400.0,0.00038356,12]
[359485093,1746054641042,-400.0,0.00038356,12]
[359485094,1746054641053,-400.0,0.00038356,12]
[359485095,1746054641063,-400.0,0.00038356,12]
[359485096,1746054641073,-400.0,0.00038356,12]
[359485097,1746054641083,-400.0,0.00038356,12]
[359485098,1746054641093,-400.0,0.00038356,12]
[359485099,1746054641103,-400.0,0.00038356,12]
[359485100,1746054641113,-400.0,0.00038356,12]
[359485101,1746054641124,-400.0,0.00038356,12]
[359485102,1746054641134,-400.0,0.00038356,12]
[359485103,1746054641144,-400.0,0.00038356,12]
[359485104,1746054641154,-400.0,0.00038356,12]
[359485105,1746054641164,-400.0,0.00038356,12]
[359485106,1746054641174,-400.0,0.00038356,12]
[359485107,1746054641185,-400.0,0.00038356,12]
[359485108,1746054641196,-400.0,0.00038356,12]
[359485109,1746054641206,-400.0,0.00038356,12]
[359485110,1746054641216,-400.0,0.00038356,12]
[359485111,1746054641226,-238.59206466,0.00038356,12]
[359485112,1746054641240,-400.0,0.00038356,12]
[359485113,1746054641251,-400.0,0.00038356,12]
[359485114,1746054641261,-151.0,0.00038356,14]
[359485115,1746054641271,-151.0,0.00038356,14]
[359485116,1746054641282,-400.0,0.00038356,12]
[359485117,1746054641292,-336.75496996,0.00038356,7]
[359485118,1746054641443,-386.65503004,0.00038356,7]
[359485119,1746054641453,-723.41,0.00038356,7]
[359485120,1746054641464,-723.41,0.00038356,7]
[359485121,1746054641474,-723.41,0.00038356,7]
[359485122,1746054641485,-723.41,0.00038356,7]
[359485123,1746054641495,-108.14762882,0.00038356,7]
[359485124,1746054642071,-615.26237118,0.00038356,7]
[359485125,1746054642082,-723.41,0.00038356,7]
[359485126,1746054642092,-723.41,0.00038356,7]
[359485127,1746054642102,-400.0,0.00038356,12]
[359485128,1746054642113,-723.41,0.00038356,7]
[359485129,1746054642123,-220.68919936,0.00038356,12]
[359485130,1746054642136,-179.31080064,0.00038356,12]
[359485131,1746054642146,-723.41,0.00038356,7]
[359485132,1746054642156,-723.41,0.00038356,7]
[359485133,1746054642167,-723.41,0.00038356,7]
[359485134,1746054642178,-723.41,0.00038356,7]
[359485135,1746054642188,-723.41,0.00038356,7]
[359485136,1746054642198,-240.89088746,0.00038356,7]
[359485137,1746054642211,-482.51911254,0.00038356,7]
[359485138,1746054642221,-723.41,0.00038356,7]
[359485139,1746054642231,-723.41,0.00038356,7]
[359485140,1746054642241,-723.41,0.00038356,7]
[359485141,1746054642251,-723.41,0.00038356,7]
[359485142,1746054642261,-723.41,0.00038356,7]
[359485143,1746054642271,-723.41,0.00038356,7]
[359485144,1746054642282,-723.41,0.00038356,7]
[359485145,1746054642292,-723.41,0.00038356,7]
[359485146,1746054642302,-723.54345784,0.00038356,7]
[359485147,1746054642312,-500.0,0.00038356,12]
[359485148,1746054642322,-400.0,0.00038356,12]
[359485149,1746054642332,-713.25,0.00038356,12]
[359485150,1746054642342,-713.25,0.00038356,12]
[359485151,1746054642353,-713.25,0.00038356,12]
[359485152,1746054642363,-394.85448337,0.00038356,12]
[359485153,1746054642376,-318.39551663,0.00038356,12]
[359485154,1746054642387,-713.25,0.00038356,12]
[359485155,1746054642397,-713.25,0.00038356,12]
[359485156,1746054642408,-713.25,0.00038356,12]
[359485157,1746054642418,-483.71956849,0.00038356,12]
[359485158,1746054642431,-229.53043151,0.00038356,12]
[359485159,1746054642441,-713.25,0.00038356,12]
[359485160,1746054642452,-713.25,0.00038356,12]
[359485161,1746054642462,-713.25,0.00038356,12]
[359485162,1746054642473,-713.25,0.00038356,12]
[359485163,1746054642484,-713.25,0.00038356,12]
[359485164,1746054642494,-713.25,0.00038356,12]
[359485165,1746054642504,-713.25,0.00038356,12]
[359485166,1746054642514,-713.25,0.00038356,12]
[359485167,1746054642525,-85.23610123,0.00038356,12]
[359485168,1746054642538,-628.01389877,0.00038356,12]
[359485169,1746054642549,-400.0,0.00038356,12]
[359485170,1746054642559,-400.0,0.00038356,12]
[359485171,1746054642569,-713.25,0.00038356,12]
[359485172,1746054642579,-21.74535179,0.00038356,12]
[359485173,1746054642592,-691.50464821,0.00038356,12]
[359485174,1746054642602,-713.25,0.00038356,12]
[359485175,1746054642612,-713.25,0.00038356,12]
[359485176,1746054642623,-400.0,0.00038356,12]
[359485177,1746054642633,-713.25,0.00038356,12]
[359485178,1746054642643,-400.0,0.00038356,12]
[359485179,1746054642652,-713.25,0.00038356,12]
[359485180,1746054642662,-500.0,0.00038356,12]
[359485181,1746054642672,-713.30683303,0.00038356,12]
[359485182,1746054642682,-400.0,0.00038356,12]
[359485183,1746054642692,-514.93,0.00038356,12]
[359485184,1746054642702,-151.0,0.00038356,14]
[359485185,1746054642712,-514.93,0.00038356,12]
[359485186,1746054642724,-514.93,0.00038356,12]
[359485187,1746054642738,-400.0,0.00038356,12]
[359485188,1746054642748,-400.0,0.00038356,12]
[359485189,1746054642758,-634.31,0.00038356,12]
[359485190,1746054642768,-514.93,0.00038356,12]
[359485191,1746054642778,-514.93,0.00038356,12]
[359485192,1746054642788,-634.31,0.00038356,12]
[359485193,1746054642799,-514.93,0.00038356,12]
[359485195,1746054642808,-634.31,0.00038356,12]
[359485197,1746054642819,-514.93,0.00038356,12]
[359485198,1746054642829,-634.31,0.00038356,12]
[359485199,1746054642839,-634.31,0.00038356,12]
[359485200,1746054642849,-514.93,0.00038356,12]
[359485201,1746054642859,-634.31,0.00038356,12]
[359485202,1746054642869,-514.93,0.00038356,12]
[359485203,1746054642879,-484.46,0.00038356,12]
[359485204,1746054642889,-634.31,0.00038356,12]
[359485205,1746054642899,-514.93,0.00038356,12]
[359485207,1746054642909,-634.31,0.00038356,12]
[359485209,1746054642919,-400.0,0.00038356,12]
[359485211,1746054642929,-514.93,0.00038356,12]
[359485212,1746054642939,-634.31,0.00038356,12]
[359485213,1746054642948,-514.93,0.00038356,12]
[359485214,1746054642959,-634.31,0.00038356,12]
[359485215,1746054642969,-514.93,0.00038356,12]
[359485216,1746054642979,-634.31,0.00038356,12]
[359485217,1746054642989,-514.93,0.00038356,12]
[359485218,1746054643000,-634.31,0.00038356,12]
[359485219,1746054643010,-514.93,0.00038356,12]
[359485221,1746054643020,-634.31,0.00038356,12]
[359485222,1746054643030,-2759.78,0.00038356,12]
[359485223,1746054643040,-514.93,0.00038356,12]
[359485224,1746054643050,-634.31,0.00038356,12]
[359485225,1746054643061,-2759.78,0.00038356,12]
[359485226,1746054643071,-634.31,0.00038356,12]
[359485227,1746054643081,-514.93,0.00038356,12]
[359485228,1746054643091,-484.46,0.00038356,12]
[359485229,1746054643101,-2759.78,0.00038356,12]
[359485230,1746054643113,-514.93,0.00038356,12]
[359485231,1746054643124,-634.31,0.00038356,12]
[359485232,1746054643136,-484.46,0.00038356,12]
[359485233,1746054643147,-2759.78,0.00038356,12]
[359485234,1746054643159,-514.93,0.00038356,12]
[359485235,1746054643170,-634.31,0.00038356,12]
[359485236,1746054643180,-484.46,0.00038356,12]
[359485237,1746054643190,-2759.78,0.00038356,12]
[359485238,1746054643200,-514.93,0.00038356,12]
[359485239,1746054643211,-634.31,0.00038356,12]
[359485240,1746054643220,-484.46,0.00038356,12]
[359485241,1746054643230,-1425.21688057,0.00038356,12]
[359485242,1746054643343,-1334.56311943,0.00038356,12]
[359485243,1746054643354,-514.93,0.00038356,12]
[359485244,1746054643364,-567.09599625,0.00038356,12]
[359485245,1746054643377,-67.21400375,0.00038356,12]
[359485246,1746054643387,-257.75624773,0.00038356,12]
[359485247,1746054643399,-226.70375227,0.00038356,12]
[359485248,1746054643409,-2759.78,0.00038356,12]
[359485249,1746054643419,-634.31,0.00038356,12]
[359485250,1746054643430,-470.15603968,0.00038356,12]
[359485251,1746054643442,-44.77396032,0.00038356,12]
[359485252,1746054643452,-484.46,0.00038356,12]
[359485253,1746054643462,-336.21256004,0.00038356,12]
[359485254,1746054643479,-178.71743996,0.00038356,12]
[359485255,1746054643490,-484.46,0.00038356,12]
[359485256,1746054643500,-523.01873481,0.00038356,12]
[359485257,1746054643513,-1228.16295939,0.00038356,12]
[359485258,1746054643526,-1008.5983058,0.00038356,12]
[359485259,1746054643536,-484.46,0.00038356,12]
[359485260,1746054643546,-515.16042359,0.00038356,12]
[359485262,1746054643557,-2759.78,0.00038356,12]
[359485264,1746054643567,-634.31,0.00038356,12]
[359485265,1746054643578,-484.46,0.00038356,12]
[359485266,1746054643587,-2759.78,0.00038356,12]
[359485267,1746054643598,-634.31,0.00038356,12]
[359485268,1746054643609,-484.46,0.00038356,12]
[359485269,1746054643619,-2759.78,0.00038356,12]
[359485270,1746054643630,-634.31,0.00038356,12]
[359485271,1746054643642,-484.46,0.00038356,12]
[359485272,1746054643653,-2759.78,0.00038356,12]
[359485273,1746054643782,-509.69664392,0.00038356,12]
[359485274,1746054643800,-634.38,0.00038356,12]
[359485275,1746054643810,-484.46,0.00038356,12]
[359485276,1746054643821,-1255.71080703,0.00038356,12]
[359485277,1746054643836,-1463.06412754,0.00038356,12]
[359485278,1746054643850,-41.00506543,0.00038356,12]
[359485279,1746054643860,-484.46,0.00038356,12]
[359485280,1746054643871,-573.369154,0.00038356,12]
[359485293,1746054645830,-1424.35250129,0.00038356,12]
[359485294,1746054645843,-762.05834471,0.00038356,12]
[359485295,1746054645853,-35.3208886,0.00038356,12]
[359485296,1746054665306,1000.0,0.00029614,2]
[359485300,1746054707172,1307.66105216,0.00027297,2]
[359485301,1746054707195,467.90435647,0.00027297,2]
[359485302,1746054707216,3597.34407454,0.00027297,2]
[359485305,1746055613228,-153.33469079,0.00032473,2]
[359485306,1746055613251,-94.20809868,0.00032573,5]
[359485307,1746055636115,-199.37977558,0.00032573,5]
[359485308,1746055642068,-307.063855,0.00027397,2]
[359485309,1746055642090,-206.41212574,0.00032573,5]
[359485310,1746055642112,-500.0,0.00032573,5]
[359485311,1746055642134,-500.0,0.00032573,5]
[359485312,1746055642154,-609.45395864,0.00032573,5]
[359485313,1746055642174,-500.0,0.00032573,5]
[359485314,1746055642195,-300.0,0.00032573,5]
[359485315,1746055642220,-500.0,0.00032573,5]
[359485316,1746055642242,-500.0,0.00032573,2]
[359485317,1746055642265,-500.0,0.00032573,5]
[359485318,1746055642285,-500.0,0.00032573,5]
[359485319,1746055642308,-338.11454721,0.00032573,5]
[359485320,1746055642330,-500.0,0.00032573,5]
[359485321,1746055642353,-299.49846152,0.00032573,5]
[359485322,1746055642374,-500.0,0.00032573,5]
[359485323,1746055642394,-204.22186963,0.00032573,5]
[359485324,1746055644249,-295.77813037,0.00032573,5]
[359485325,1746055644273,-500.0,0.00032573,5]
[359485326,1746055644295,-137.02226696,0.00032573,5]
[359485329,1746055674638,3889.89867932,0.00016,2]
[359485330,1746055674685,3915.03811378,0.00016,2]
[359485333,1746055695603,1491.05364914,0.000125,2]
[359485334,1746055708898,279.44054015,0.0001,2]
[359485335,1746055747204,-566.63732982,0.00030473,2]
[359485337,1746055765087,-300.0,0.00032572,2]
[359485338,1746055765108,-500.0,0.00032573,5]
[359485339,1746055765139,-300.0,0.00032575,3]
[359485340,1746055765163,-193.14288463,0.00032576,2]
[359485341,1746055765183,-287.13519768,0.00032576,2]
[359485342,1746055765204,-500.0,0.00032576,2]
[359485343,1746055765225,-500.0,0.00032576,2]
[359485344,1746055765252,-500.0,0.00032576,2]
[359485345,1746055765272,-500.0,0.00032576,2]
[359485346,1746055765294,-500.0,0.00032576,2]
[359485347,1746055765315,-350.0,0.00032576,2]
[359485348,1746055765336,-389.57554645,0.00032576,2]
[359485349,1746055765565,-500.0,0.00032576,2]
[359485350,1746055765591,-500.0,0.00032576,2]
[359485351,1746055765615,-334.96070841,0.00032576,2]
[359485352,1746055765639,-500.0,0.00032576,2]
[359485353,1746055765663,-500.0,0.00032576,2]
[359485354,1746055765684,-500.0,0.00032576,2]
[359485355,1746055765707,-500.0,0.00032576,2]
[359485356,1746055765902,-500.0,0.00032576,2]
[359485357,1746055765927,-500.0,0.00032576,2]
[359485358,1746055765950,-500.0,0.00032576,2]
[359485359,1746055765971,-500.0,0.00032576,2]
[359485360,1746055765995,-597.04003392,0.00032576,2]
[359485361,1746055766021,-23873.55025786,0.00032577,2]
[359485362,1746055766042,-500.0,0.000326,5]
[359485363,1746055766062,-500.0,0.000326,5]
[359485364,1746055766081,-500.0,0.000326,5]
[359485365,1746055766102,-510.49861526,0.000326,5]
[359485366,1746055766121,-500.0,0.000326,5]
[359485367,1746055766140,-500.0,0.00032603,4]
[359485368,1746055766160,-975.08990517,0.00032677,2]
[359485369,1746055766179,-544.64955648,0.00032777,2]
[359485370,1746055766200,-189.0,0.00032877,3]
[359485371,1746055766221,-307.063855,0.00033165,2]
[359485372,1746055766241,-6218.800121,0.00033255,2]
[359485373,1746055771686,151.43767191,0.000229,2]
[359485374,1746055777129,193.98680422,0.00027,3]
[359485375,1746055797377,250.0,0.00033304,2]
[359485401,1746055831882,-209.2176343,0.00034493,2]
[359485403,1746055831893,-24900.0,0.0003487,2]
[359485405,1746055831902,-1301.448665,0.00034905,2]
[359485407,1746055831912,-303.0,0.00035,2]
[359485409,1746055831921,-337.0966198,0.0003547,2]
[359485411,1746055831931,-566.63732982,0.00035473,2]
[359485413,1746055831940,-184.976669,0.00035987,2]
[359485415,1746055831949,-12500.0,0.00037512,5]
[359485417,1746055831959,-4522.78794593,0.00037521,5]
[359485419,1746055831971,-7977.21205407,0.00037521,5]
[359485421,1746055831981,-8381.04534742,0.0003753,5]
[359485424,1746055831993,-4118.95465258,0.0003753,5]
[359485426,1746055832002,-764.92931701,0.00037571,30]
[359485428,1746055832012,-500.0,0.00037573,5]
[359485432,1746055832021,-500.0,0.00037573,2]
[359485435,1746055832031,-500.0,0.00037573,2]
[359485438,1746055832040,-501.85878281,0.00037573,5]
[359485441,1746055832049,-500.0,0.00037573,5]
[359485444,1746055832058,-500.0,0.00037573,5]
[359485447,1746055832068,-255.76072221,0.00037573,5]
[359485450,1746055832077,-500.0,0.00037573,5]
[359485454,1746055832086,-1093.8532198,0.00037813,2]
[359485459,1746055832096,-234.25308925,0.00037999,7]
[359485462,1746055832106,-391.19052332,0.00037999,15]
[359485465,1746055832116,-500.0,0.00037999,15]
[359485467,1746055832126,-153.75099945,0.00037999,7]
[359485470,1746055832135,-19456.48204626,0.00038,5]
[359485473,1746055832145,-1000.0,0.00038052,5]
[359485476,1746055832154,-500.0,0.00038079,5]
[359485478,1746055832164,-1000.0,0.00038079,5]
[359485481,1746055832174,-1000.0,0.00038079,5]
[359485483,1746055832185,-306.07151977,0.00038189,2]
[359485484,1746055832195,-212.73083559,0.00038256,2]
[359485486,1746055832204,-10011.50765914,0.00038256,2]
[359485488,1746055832214,-185.844562,0.000383,2]
[359485490,1746055832225,-31648.0087848,0.00038356,2]
[359485492,1746055832236,-1112.58241319,0.00038356,3]
[359485494,1746055832247,-151.0,0.00038356,14]
[359485497,1746055832256,-151.0,0.00038356,14]
[359485499,1746055832269,-151.0,0.00038356,14]
[359485500,1746055832280,-152.403565,0.00038356,14]
[359485503,1746055832290,-158.74753997,0.00038356,12]
[359485506,1746055832314,-341.25246003,0.00038356,12]
[359485508,1746055832323,-151.0,0.00038356,14]
[359485509,1746055832333,-151.0,0.00038356,14]
[359485510,1746055832342,-151.0,0.00038356,14]
[359485511,1746055832354,-151.0,0.00038356,14]
[359485512,1746055832365,-151.0,0.00038356,14]
[359485513,1746055832375,-151.0,0.00038356,14]
[359485514,1746055832386,-500.0,0.00038356,12]
[359485515,1746055832395,-500.0,0.00038356,12]
[359485516,1746055832405,-400.0,0.00038356,12]
[359485517,1746055832415,-400.0,0.00038356,12]
[359485518,1746055832425,-400.0,0.00038356,12]
[359485519,1746055832435,-400.0,0.00038356,12]
[359485520,1746055832446,-400.0,0.00038356,12]
[359485521,1746055832455,-400.0,0.00038356,12]
[359485522,1746055832466,-12155.4569476,0.00038356,5]
[359485523,1746055832476,-400.0,0.00038356,12]
[359485524,1746055832487,-400.0,0.00038356,12]
[359485525,1746055832497,-400.0,0.00038356,12]
[359485526,1746055832507,-400.0,0.00038356,12]
[359485527,1746055832517,-400.0,0.00038356,12]
[359485528,1746055832527,-349.05794269,0.00038356,12]
[359485531,1746055832542,-50.94205731,0.00038356,12]
[359485532,1746055832552,-400.0,0.00038356,12]
[359485533,1746055832562,-400.0,0.00038356,12]
[359485534,1746055832572,-400.0,0.00038356,12]
[359485535,1746055832581,-191.05033844,0.00038356,12]
[359485536,1746055832594,-208.94966156,0.00038356,12]
[359485537,1746055832604,-116.1059754,0.00038356,12]
[359485538,1746055832644,-500.0,0.00037999,15]
[359485539,1746055832653,-283.8940246,0.00038356,12]
[359485540,1746055832663,-400.0,0.00038356,12]
[359485541,1746055832673,-400.0,0.00038356,12]
[359485542,1746055832682,-400.0,0.00038356,12]
[359485543,1746055832692,-500.0,0.00038356,12]
[359485544,1746055832701,-400.0,0.00038356,12]
[359485545,1746055832711,-400.0,0.00038356,12]
[359485546,1746055832721,-400.0,0.00038356,12]
[359485547,1746055832731,-400.0,0.00038356,12]
[359485548,1746055832741,-500.0,0.00038356,12]
[359485549,1746055832752,-489.38,0.00038356,12]
[359485550,1746055832762,-500.0,0.00038356,12]
[359485551,1746055832771,-357.04926952,0.00038356,12]
[359485552,1746055832781,-400.0,0.00038356,12]
[359485553,1746055832790,-400.0,0.00038356,12]
[359485554,1746055832800,-400.0,0.00038356,12]
[359485555,1746055832810,-400.0,0.00038356,12]
[359485556,1746055832819,-400.0,0.00038356,12]
[359485557,1746055832829,-500.0,0.00038356,12]
[359485558,1746055832838,-400.0,0.00038356,12]
[359485559,1746055832847,-400.0,0.00038356,12]
[359485560,1746055832857,-400.0,0.00038356,12]
[359485561,1746055832867,-400.0,0.00038356,12]
[359485562,1746055832876,-363.95386561,0.00038356,12]
[359485563,1746055832885,-500.0,0.00038356,12]
[359485564,1746055832895,-400.0,0.00038356,12]
[359485565,1746055832905,-167.97316963,0.00038356,12]
[359485566,1746055832915,-400.0,0.00038356,12]
[359485567,1746055832924,-400.0,0.00038356,12]
[359485568,1746055832934,-400.0,0.00038356,12]
[359485569,1746055832944,-400.0,0.00038356,12]
[359485570,1746055832954,-400.0,0.00038356,12]
[359485571,1746055832963,-205.82570064,0.00038356,12]
[359485572,1746055832973,-400.0,0.00038356,12]
[359485573,1746055832983,-400.0,0.00038356,12]
[359485574,1746055832992,-400.0,0.00038356,12]
[359485575,1746055833002,-400.0,0.00038356,12]
[359485576,1746055833012,-400.0,0.00038356,12]
[359485577,1746055833021,-400.0,0.00038356,12]
[359485578,1746055833031,-400.0,0.00038356,12]
[359485579,1746055833041,-400.0,0.00038356,12]
[359485580,1746055833051,-400.0,0.00038356,12]
[359485581,1746055833061,-504.19725742,0.00038356,12]
[359485582,1746055833071,-500.0,0.00038356,12]
[359485583,1746055833081,-400.0,0.00038356,12]
[359485584,1746055833090,-400.0,0.00038356,12]
[359485585,1746055833100,-400.0,0.00038356,12]
[359485586,1746055833109,-263.4,0.00038356,12]
[359485587,1746055833256,-400.0,0.00038356,12]
[359485588,1746055833269,-400.0,0.00038356,12]
[359485589,1746055833279,-500.0,0.00038356,12]
[359485590,1746055833289,-500.0,0.00038356,12]
[359485591,1746055833298,-167.01157647,0.00038356,12]
[359485592,1746055833308,-400.0,0.00038356,12]
[359485593,1746055833318,-400.0,0.00038356,12]
[359485594,1746055833327,-400.0,0.00038356,12]
[359485595,1746055833337,-400.0,0.00038356,12]
[359485596,1746055833348,-400.0,0.00038356,12]
[359485597,1746055833358,-171.24756477,0.00038356,12]
[359485598,1746055833367,-400.0,0.00038356,12]
[359485599,1746055833377,-400.0,0.00038356,12]
[359485600,1746055833386,-400.0,0.00038356,12]
[359485601,1746055833396,-400.0,0.00038356,12]
[359485602,1746055833405,-500.0,0.00038356,12]
[359485603,1746055833415,-500.0,0.00038356,12]
[359485604,1746055833424,-400.0,0.00038356,12]
[359485605,1746055833434,-400.0,0.00038356,12]
[359485606,1746055833444,-400.0,0.00038356,12]
[359485607,1746055833454,-400.0,0.00038356,12]
[359485608,1746055833463,-400.0,0.00038356,12]
[359485609,1746055833472,-400.0,0.00038356,12]
[359485610,1746055833482,-400.0,0.00038356,12]
[359485611,1746055833490,-400.0,0.00038356,12]
[359485612,1746055833500,-500.0,0.00038356,12]
[359485613,1746055833510,-400.0,0.00038356,12]
[359485614,1746055833519,-400.0,0.00038356,12]
[359485615,1746055833529,-400.0,0.00038356,12]
[359485616,1746055833539,-400.0,0.00038356,12]
[359485617,1746055833549,-400.0,0.00038356,12]
[359485618,1746055833559,-400.0,0.00038356,12]
[359485619,1746055833568,-400.0,0.00038356,12]
[359485620,1746055833578,-400.0,0.00038356,12]
[359485621,1746055833588,-400.0,0.00038356,12]
[359485622,1746055833598,-400.0,0.00038356,12]
[359485623,1746055833607,-173.35037295,0.00038356,12]
[359485624,1746055833617,-400.0,0.00038356,12]
[359485625,1746055833626,-400.0,0.00038356,12]
[359485626,1746055833636,-400.0,0.00038356,12]
[359485627,1746055833646,-400.0,0.00038356,12]
[359485628,1746055833655,-400.0,0.00038356,12]
[359485629,1746055833666,-400.0,0.00038356,12]
[359485630,1746055833675,-400.0,0.00038356,12]
[359485631,1746055833686,-400.0,0.00038356,12]
[359485632,1746055833695,-400.0,0.00038356,12]
[359485633,1746055833705,-400.0,0.00038356,12]
[359485634,1746055833715,-400.0,0.00038356,12]
[359485635,1746055833725,-261.49040629,0.00038356,12]
[359485636,1746055833734,-186.84042679,0.00038356,12]
[359485637,1746055833743,-400.0,0.00038356,12]
[359485638,1746055833754,-400.0,0.00038356,12]
[359485639,1746055833763,-400.0,0.00038356,12]
[359485640,1746055833774,-200.0,0.00038356,12]
[359485641,1746055833784,-400.0,0.00038356,12]
[359485642,1746055833793,-400.0,0.00038356,12]
[359485643,1746055833803,-400.0,0.00038356,12]
[359485644,1746055833813,-389.54475753,0.00038356,12]
[359485645,1746055833823,-400.0,0.00038356,12]
[359485646,1746055833833,-400.0,0.00038356,12]
[359485647,1746055833843,-400.0,0.00038356,12]
[359485648,1746055833853,-417.54,0.00038356,12]
[359485649,1746055833862,-400.0,0.00038356,12]
[359485650,1746055833872,-400.0,0.00038356,12]
[359485651,1746055833882,-400.0,0.00038356,12]
[359485652,1746055833891,-400.0,0.00038356,12]
[359485653,1746055833901,-400.0,0.00038356,12]
[359485654,1746055833910,-400.0,0.00038356,12]
[359485655,1746055833919,-400.0,0.00038356,12]
[359485656,1746055833929,-400.0,0.00038356,12]
[359485657,1746055833937,-400.0,0.00038356,12]
[359485658,1746055833945,-400.0,0.00038356,12]
[359485659,1746055833953,-400.0,0.00038356,12]
[359485660,1746055833962,-400.0,0.00038356,12]
[359485661,1746055833972,-400.0,0.00038356,12]
[359485662,1746055833981,-400.0,0.00038356,12]
[359485663,1746055833991,-200.0,0.00038356,12]
[359485664,1746055834001,-400.0,0.00038356,12]
[359485665,1746055834011,-400.0,0.00038356,12]
[359485666,1746055834021,-400.0,0.00038356,12]
[359485667,1746055834031,-400.0,0.00038356,12]
[359485668,1746055834040,-321.72,0.00038356,12]
[359485669,1746055834050,-400.0,0.00038356,12]
[359485670,1746055834059,-400.0,0.00038356,12]
[359485671,1746055834069,-400.0,0.00038356,12]
[359485672,1746055834079,-400.0,0.00038356,12]
[359485673,1746055834088,-400.0,0.00038356,12]
[359485674,1746055834098,-400.0,0.00038356,12]
[359485675,1746055834108,-400.0,0.00038356,12]
[359485676,1746055834117,-400.0,0.00038356,12]
[359485677,1746055834128,-400.0,0.00038356,12]
[359485678,1746055834137,-400.0,0.00038356,12]
[359485679,1746055834146,-400.0,0.00038356,12]
[359485680,1746055834153,-400.0,0.00038356,12]
[359485681,1746055834161,-400.0,0.00038356,12]
[359485682,1746055834169,-400.0,0.00038356,12]
[359485683,1746055834178,-400.0,0.00038356,12]
[359485684,1746055834187,-200.0,0.00038356,12]